[Event "Hungarian Youth-ch U14 2022"]
[Site "Eger"]
[Date "2022.07.28"]
[Round "6.3"]
[White "Bodrogi, Bendeguz"]
[Black "Turcsanyi, Vince Gergo"]
[Result "1-0"]
[ECO "A06"]
[WhiteElo "2170"]
[BlackElo "2117"]
[Annotator "TA"]
[PlyCount "73"]
[EventDate "2022.07.21"]
[EventType "tourn"]
[EventCountry "HUN"]
[SourceTitle "playchess.com"]
[Source "ChessBase"]
[SourceQuality "1"]
[TimeControl "40/5400+30:1800+30"]

{[%evp 12,73,16,6,19,18,24,32,23,25,14,11,46,38,34,47,45,27,85,66,65,43,181,183,218,227,212,205,222,205,209,203,207,196,220,212,208,223,251,276,259,177,322,170,336,340,333,311,1258,1244,1280,963,929,915,29988,29989,29989,29990,29990,29991,29991,29992,29994,29990]} 1. Nf3 {[%emt 0:00:35]} d5 {[%emt 0:01:02]} 2. g3 {[%emt 0:00:06]} Nf6 {[%emt 0:00:05]} 3. Bg2 {[%emt 0:00:07]} e6 {[%emt 0:00:07]} 4. O-O {[%emt 0:00:06]} Be7 {[%emt 0:00:06]} 5. c4 {[%emt 0:00:08]} O-O {[%emt 0:00:06]} 6. d4 {[%emt 0:00:04]} dxc4 {[%emt 0:00:06]} 7. Qc2 {[%emt 0:00:26]} b6 {[%emt 0:00:53] E05: Open Catalan: 5 Nf3 Be7.} 8. Ne5 {[%emt 0:00:25]} Qxd4 {[%emt 0:02:40]} 9. Bxa8 {[%emt 0:00:18] [#] Hoping for Qc3.} Qxe5 {[%emt 0:00:12] White is slightly better.} 10. Bf3 {[%emt 0:00:05]} Ba6 {[%emt 0:09:44]} 11. Nc3 {[%emt 0:01:56] [#]} Nd5 $146 {[%emt 0:09:58] Prevents Bf4.} ({Predecessor:} 11... g5 12. Rd1 Nbd7 13. Be3 Nc5 14. b4 Ncd7 15. a3 Bc8 16. Ne4 Nxe4 17. Bxe4 f5 18. Bc6 Nb8 19. Bd4 Qd6 20. Bg2 b5 21. Bc5 {1-0 (21) Neukirchner,P (2306)-Kuipers,D (2095) Schwaebisch Gmuend 2019}) 12. Nxd5 $1 {[%emt 0:15:24]} exd5 {[%emt 0:00:40]} 13. Bf4 {[%emt 0:01:25]} Qe6 {[%emt 0:00:29]} 14. Rad1 $36 {[%emt 0:05:16][%mdl 2048] Black is under pressure.} Bb7 {[%emt 0:11:28]} (14... c6 $1 $11) 15. b3 {[%emt 0:02:36] Strongly threatening bxc4.} g5 {[%emt 0:12:43]} 16. Bc1 {[%emt 0:07:48] And now bxc4 would win.} ({Don't play} 16. Bxc7 Na6 17. Bxb6 Nb4 $17) 16... cxb3 {[%emt 0:03:17] This move loses the game for Black.} ({Black should play} 16... b5 $14) 17. Qxc7 $18 {[%emt 0:19:30]} Bc6 {[%emt 0:17:27]} 18. axb3 {[%emt 0:07:41]} Nd7 {[%emt 0:16:47]} 19. Bb2 {[%emt 0:24:14] Inhibits Ne5.} a5 {[%emt 0:04:07] [#]} 20. Bg4 $1 {[%emt 0:01:34][%mdl 512]} f5 {[%emt 0:00:44]} 21. Bf3 {[%emt 0:00:05]} Ba8 {[%emt 0:03:44]} 22. Rc1 {[%emt 0:06:14]} ({Much less strong is} 22. Qc3 Bf6 23. Qd2 Bxb2) 22... Bd6 {[%emt 0:01:10]} 23. Qc3 {[%emt 0:01:08][%csl Gb2][%cal Rc3g7]} Be5 {[%emt 0:00:14] Prevents Qg7+.} 24. Qd2 {[%emt 0:00:12]} Bxb2 {[%emt 0:00:26]} 25. Qxb2 {[%emt 0:00:06]} Ne5 {[%emt 0:00:08]} 26. Qd4 {[%emt 0:02:40] Black must now prevent Bg2.} f4 {[%emt 0:01:13]} (26... Qf6 $142 27. Rfd1 (27. Bxd5+ Kh8 $16) 27... Nxf3+ 28. exf3 Qxd4 29. Rxd4 Rf6 30. Rc8+ Rf8) 27. Rcd1 {[%emt 0:00:21]} (27. Rc7 $142) 27... Rd8 $2 {[%emt 0:00:06]} (27... Nxf3+ {keeps fighting.} 28. exf3 Qf6) 28. gxf4 {[%emt 0:00:52]} gxf4 {[%emt 0:00:19]} 29. Kh1 {[%emt 0:00:22]} ({Weaker is} 29. Qxf4 Rf8 30. Qg5+ Kh8 $16) 29... Nxf3 {[%emt 0:02:40]} (29... Qf6 30. Rc1 Kg7 31. Rc7+ Kh6) 30. exf3 {[%emt 0:00:04]} Kf7 {[%emt 0:00:04]} 31. Rg1 {[%emt 0:00:40] White wants to mate with Qg7+.} Qf6 {[%emt 0:00:40] Against Qg7+} 32. Qd3 {[%emt 0:02:12]} Rd7 {[%emt 0:01:29]} 33. Qxh7+ {[%emt 0:01:14] White mates.} Ke6 {[%emt 0:00:00]} 34. Qg8+ {[%emt 0:00:08]} Ke7 {[%emt 0:01:16]} 35. Qxa8 {[%emt 0:00:14]} Qc3 {[%emt 0:00:03]} 36. Rde1+ {[%emt 0:00:11]} Kd6 {[%emt 0:00:51]} 37. Qf8+ {[%emt 0:00:05] Weighted Error Value: White=0.14 (very precise) /Black=0.49} 1-0

[Event "Hungarian Youth-ch U14 2022"]
[Site "Eger"]
[Date "2022.07.28"]
[Round "6.4"]
[White "Megyaszai, Balazs"]
[Black "Szakmary, Domonkos"]
[Result "1-0"]
[ECO "B07"]
[WhiteElo "1919"]
[BlackElo "1967"]
[Annotator "TA"]
[PlyCount "82"]
[EventDate "2022.07.21"]
[EventType "tourn"]
[EventCountry "HUN"]
[SourceTitle "playchess.com"]
[Source "ChessBase"]
[SourceQuality "1"]
[TimeControl "40/5400+30:1800+30"]

{[%evp 13,82,32,39,24,27,19,58,10,12,1,48,45,116,0,8,4,100,80,102,93,123,56,118,110,208,77,138,158,150,139,229,210,214,114,253,244,233,214,510,417,381,155,522,212,530,515,29965,29964,29965,12561,6303,6303,6515,981,865,252,246,231,397,362,7567,7567,6491,6491,6427,6415,6295,6205,6219,6195,6179]} 1. e4 {[%emt 0:00:33]} d6 {[%emt 0:00:33]} 2. d4 {[%emt 0:00:11]} Nf6 {[%emt 0:00:05]} 3. Nc3 {[%emt 0:00:16]} Nbd7 {[%emt 0:00:01]} 4. Nf3 {[%emt 0:02:46]} e5 {[%emt 0:00:04]} 5. Bc4 {[%emt 0:07:13]} Be7 {[%emt 0:00:51]} 6. O-O {[%emt 0:01:48]} c6 {[%emt 0:00:12]} 7. a4 {[%emt 0:01:34]} Qc7 {[%emt 0:00:18] 7...h6 is a critical line.} 8. Bg5 {[%emt 0:08:09][%cal Bc1g5,Bg5h4,Bh4g3][%mdl 32] C41: Philidor Defence.} h6 {[%emt 0:01:50]} 9. Bh4 {[%emt 0:03:19] [#]} exd4 $146 {[%emt 0:10:50]} ({Predecessor:} 9... O-O 10. a5 Re8 11. Re1 Rb8 12. d5 g5 13. Bg3 Nf8 14. Qd3 Ng6 15. Bb3 a6 {0-1 (64) Marzocchi,T (2222)-Tiraboschi,N (2277) Premium Chess Arena INT 2020}) 10. Qxd4 {[%emt 0:14:04]} (10. Nxd4 $14 Ne5 11. Be2) 10... Ne5 $11 {[%emt 0:07:22]} 11. Be2 {[%emt 0:05:12]} Bg4 {[%emt 0:10:02]} (11... Ng6 $11) 12. Bg3 $14 {[%emt 0:31:36][%cal Rf3e5]} Nfd7 {[%emt 0:07:44]} (12... Nxf3+ $14 13. gxf3 Be6) 13. Qd1 {[%emt 0:01:09]} ({White should play} 13. Nxe5 $1 $16 dxe5 14. Bxg4 exd4 15. Bxc7 dxc3 16. bxc3) 13... Bxf3 $11 {[%emt 0:09:35]} 14. Bxf3 {[%emt 0:00:05]} O-O-O {[%emt 0:00:54]} (14... a5 $11 {remains equal.}) 15. Be2 {[%emt 0:03:07]} g5 {[%emt 0:03:09]} 16. b4 {[%emt 0:04:41]} Bf6 {[%emt 0:05:31][%cal Oh6h5]} 17. Ra3 {[%emt 0:01:24]} (17. b5 $16) 17... Nb6 {[%emt 0:06:30]} ({Black should try} 17... h5 $14) 18. Rb3 {[%emt 0:03:32] aiming for b5.} Nbc4 {[%emt 0:12:50] [#]} (18... Kb8 $16) 19. Qc1 {[%emt 0:01:25]} (19. b5 $1 $18 {[%cal Rb5c6] bxc6 is the strong threat.} Rd7 20. bxc6 bxc6 21. Bxc4 Nxc4 22. Qd3) 19... h5 {[%emt 0:04:17]} (19... Kb8 $142) 20. Bxe5 $16 {[%emt 0:01:00]} Nxe5 {[%emt 0:00:11]} 21. b5 {[%emt 0:00:14] Hoping for bxc6.} Rd7 {[%emt 0:05:00]} (21... d5 $16) 22. bxc6 $18 {[%emt 0:02:36]} bxc6 {[%emt 0:00:02]} 23. Qe3 {[%emt 0:02:15]} (23. h4 $18) 23... Ng4 {[%emt 0:02:50]} (23... Qa5 $16) 24. Bxg4 {[%emt 0:00:42]} hxg4 {[%emt 0:00:02]} 25. g3 {[%emt 0:00:22]} Re7 $2 {[%emt 0:04:07]} (25... Qa5 26. Rfb1 Rc7) 26. Qe2 {[%emt 0:01:33]} Bxc3 {[%emt 0:00:59]} 27. Rxc3 {[%emt 0:00:18]} (27. Qa6+ $18 Kd7 28. Rb7) 27... f5 $2 {[%emt 0:02:54] This costs Black the game.} (27... Kb7 $16 28. Qxg4 (28. Qc4 Ka8 $16) 28... f6) 28. Qa6+ {[%emt 0:00:48]} (28. Rb1 $142 {And now Qa6+ would win.} Kd7 29. Qa6 (29. Re3 Reh7 $11)) 28... Kd7 $2 {[%emt 0:00:01]} (28... Qb7 29. Rxc6+ Kb8 30. exf5 Reh7) 29. Rb1 {[%emt 0:00:33]} ({Not} 29. exf5 Qb6 30. Qc4 Reh7 $18) 29... Ke6 {[%emt 0:03:03]} (29... Qc8 $18 30. Qxa7+ Ke6 31. exf5+ Kf6 32. Qd4+ Kxf5 33. Qxd6 Qe6 34. Qd3+ Qe4 35. Rc5+ Kg6 36. Rxc6+ Kh5) 30. Rxc6 {[%emt 0:00:37]} Qd7 {[%emt 0:00:11]} 31. Rd1 {[%emt 0:01:08] Qc4+ would kill now.} Rd8 {[%emt 0:00:04]} 32. exf5+ {[%emt 0:00:42]} Ke5 {[%emt 0:00:45] [#]} 33. f6 {[%emt 0:00:57]} (33. Rd5+ $142 $3 {[%mdl 512]} Kf6 34. Rcxd6+ Qxd6 35. Rxd6+ Rxd6 36. Qxd6+ Kf7 37. Qg6+ Kf8 38. f6) 33... Re6 {[%emt 0:00:30]} 34. Rc3 $2 {[%emt 0:00:33]} (34. f7) 34... Kxf6 {[%emt 0:00:14]} 35. Rcd3 {[%emt 0:00:37]} Ke7 $2 {[%emt 0:01:19]} (35... Qc7 36. Rd5 Qc3) 36. Qa5 {[%emt 0:00:21]} Re5 $2 {[%emt 0:00:14]} (36... Kf7 37. Qxg5 Rg6 38. Qd5+ Kg7) 37. Qxe5+ {[%emt 0:00:58] White is clearly winning.} dxe5 38. Rxd7+ {[%emt 0:00:02]} Rxd7 {[%emt 0:00:03]} 39. Rxd7+ {[%emt 0:00:13]} Kxd7 {[%emt 0:00:01]} 40. Kg2 {[%emt 0:00:00]} Kc6 {[%emt 0:00:00]} 41. f3 {[%emt 0:06:10]} Kd5 {Weighted Error Value: White=0.72/Black=1.06} 1-0

[Event "Hungarian Youth-ch U14 2022"]
[Site "Eger"]
[Date "2022.07.28"]
[Round "6.5"]
[White "Gergely, Daniel"]
[Black "Kolimar, Kristof Pal"]
[Result "1/2-1/2"]
[ECO "E90"]
[WhiteElo "2053"]
[BlackElo "2160"]
[Annotator "TA"]
[PlyCount "75"]
[EventDate "2022.07.21"]
[EventType "tourn"]
[EventCountry "HUN"]
[SourceTitle "playchess.com"]
[Source "ChessBase"]
[SourceQuality "1"]
[TimeControl "40/5400+30:1800+30"]

{[%evp 25,75,0,22,21,21,21,24,20,27,20,23,20,31,17,14,10,20,20,20,20,20,20,20,20,20,14,16,13,20,20,24,24,31,31,31,31,31,31,31,23,31,23,23,0,0,0,0,0,0,0,0,0]} 1. d4 {[%emt 0:00:35]} Nf6 {[%emt 0:00:34]} 2. c4 {[%emt 0:00:07]} g6 {[%emt 0:00:04]} 3. Nc3 {[%emt 0:00:06]} Bg7 {[%emt 0:00:04]} 4. e4 {[%emt 0:00:04]} d6 {[%emt 0:00:06]} 5. Nf3 {[%emt 0:00:13]} O-O {[%emt 0:00:07]} 6. h3 {[%emt 0:00:09]} e5 {[%emt 0:01:04]} 7. dxe5 {[%emt 0:00:41]} dxe5 {[%emt 0:00:07]} 8. Qxd8 {[%emt 0:00:08]} Rxd8 {[%emt 0:00:01]} 9. Bg5 {[%emt 0:00:08]} Re8 {[%emt 0:02:40]} 10. Nd5 {[%emt 0:00:29]} Nxd5 {[%emt 0:00:10]} 11. cxd5 {[%emt 0:00:08]} c6 {[%emt 0:11:17]} 12. Bc4 {[%emt 0:00:39]} cxd5 {[%emt 0:05:23]} 13. Bxd5 {[%emt 0:00:07]} Nc6 {[%emt 0:00:43] has lost popularity (13...Nd7).} 14. O-O-O {[%emt 0:00:54] E90: King's Indian: Classical: Early deviations and 6 h3.} Be6 {[%emt 0:05:02]} 15. Bxe6 {[%emt 0:03:11]} Rxe6 {[%emt 0:00:52]} 16. Rd7 {[%emt 0:03:03] White has an edge.} f6 {[%emt 0:05:53]} 17. Be3 {[%emt 0:01:47] [#]} b6 $146 {[%emt 0:11:46]} ({Predecessor:} 17... Re7 18. Rhd1 b6 19. Rxe7 Nxe7 20. Rd7 Rc8+ 21. Kb1 Nc6 22. a3 Bf8 23. b4 Ra8 {1-0 (41) Rausis,I (2514)-Karayiannis,C (2167) London 2012}) 18. Rhd1 {[%emt 0:07:57]} Rae8 {[%emt 0:02:26]} 19. a3 {[%emt 0:04:19]} R6e7 {[%emt 0:04:19]} 20. b4 {[%emt 0:01:48]} Rxd7 21. Rxd7 {[%emt 0:00:22]} Re7 {[%emt 0:02:53]} 22. Rxe7 {[%emt 0:00:17]} Nxe7 $11 {[%emt 0:00:02][%mdl 4096] Endgame KBN-KBN} 23. Kc2 {[%emt 0:00:57]} Nc8 {[%emt 0:00:59]} 24. a4 {[%emt 0:01:31]} Kf7 {[%emt 0:20:28]} 25. Kb3 {[%emt 0:03:58]} Ke6 {[%emt 0:04:42]} 26. Nd2 {[%emt 0:02:44]} Bf8 {[%emt 0:08:41]} 27. Nc4 {[%emt 0:05:31]} Kd7 {[%emt 0:02:13]} 28. b5 {[%emt 0:05:15]} Nd6 {[%emt 0:02:28]} 29. Nxd6 {[%emt 0:01:43]} Bxd6 $14 {[%emt 0:00:02] KB-KB} 30. a5 {[%emt 0:03:46]} Bc7 {[%emt 0:00:06]} 31. Kc4 {[%emt 0:05:58] Threatens to win with axb6.} Ke6 {[%emt 0:00:07]} 32. g3 {[%emt 0:02:17]} Bd8 {[%emt 0:03:51]} 33. a6 {[%emt 0:00:53]} Bc7 {[%emt 0:01:38]} 34. f4 exf4 {The position is equal.} 35. gxf4 {[%emt 0:01:18]} f5 {[%emt 0:00:42]} 36. exf5+ {[%emt 0:03:09]} gxf5 {[%emt 0:00:14]} (36... Kxf5 $2 37. Kd5 $18) 37. Bd4 {[%emt 0:01:24]} Bb8 {[%emt 0:00:08]} (37... Bxf4 $2 {[#]} 38. Bxb6 $1 {[%mdl 512]} Bb8 39. Bd4 $18) 38. Be3 {[%emt 0:02:19] Weighted Error Value: White=0.03 (flawless) /Black=0.03 (flawless)} 1/2-1/2

[Event "Hungarian Youth-ch U14 2022"]
[Site "Eger"]
[Date "2022.07.28"]
[Round "6.6"]
[White "Lazsadi, Kerka Lilla"]
[Black "Balazs, Sztella Anna"]
[Result "1-0"]
[ECO "A46"]
[WhiteElo "1674"]
[BlackElo "1663"]
[Annotator "NA RC COMBH"]
[PlyCount "95"]
[EventDate "2022.07.21"]
[EventType "tourn"]
[EventCountry "HUN"]
[SourceTitle "playchess.com"]
[Source "ChessBase"]
[SourceQuality "1"]
[TimeControl "40/5400+30:1800+30"]

1. d4 {[%emt 0:00:33]} e6 {[%emt 0:00:33]} 2. Nf3 {[%emt 0:00:09]} Nf6 {[%emt 0:00:07]} 3. Bg5 {[%emt 0:00:08]} h6 {[%emt 0:00:14]} 4. Bh4 {[%emt 0:00:06]} d5 {[%emt 0:00:37]} 5. e3 {[%emt 0:00:08]} c5 {[%emt 0:00:18]} 6. c3 {[%emt 0:00:08]} Be7 {[%emt 0:00:39]} 7. Bd3 {[%emt 0:00:13]} O-O {[%emt 0:00:34]} 8. O-O {[%emt 0:02:38]} b6 {[%emt 0:01:47]} 9. Bc2 {[%emt 0:01:05]} Ba6 {[%emt 0:03:13]} 10. Re1 {[%emt 0:00:16]} Nbd7 {[%emt 0:00:28]} 11. Nbd2 {[%emt 0:02:14]} Rc8 {[%emt 0:02:41]} 12. h3 {[%emt 0:02:25]} Qc7 {[%emt 0:02:50]} 13. Rc1 {[%emt 0:06:49]} Bd6 {[%emt 0:03:04]} 14. Bb1 {[%emt 0:03:04]} g5 {[%emt 0:16:16]} 15. Nxg5 {[%emt 0:12:37]} hxg5 {[%emt 0:00:07]} 16. Bxg5 {[%emt 0:00:09]} Kg7 {[%emt 0:00:10]} 17. e4 {[%emt 0:02:18]} dxe4 {[%emt 0:02:25]} 18. Nxe4 {[%emt 0:00:19]} Nxe4 {[%emt 0:00:17]} 19. Rxe4 {[%emt 0:00:14]} Rh8 {[%emt 0:04:48]} 20. Rg4 {[%emt 0:06:28]} Kf8 {[%emt 0:02:21]} 21. d5 {[%emt 0:04:49]} e5 {[%emt 0:13:04]} 22. Qf3 {[%emt 0:01:16]} Ke8 {[%emt 0:05:22]} 23. Bf5 {[%emt 0:12:47]} Be7 {[%emt 0:03:49]} 24. Bxe7 {[%emt 0:01:53]} Kxe7 {[%emt 0:00:09]} 25. d6+ {[%emt 0:00:56]} Qxd6 {[%emt 0:02:11]} 26. Rd1 {[%emt 0:00:24]} Bb7 {[%emt 0:02:31]} 27. Qe2 {[%emt 0:03:32]} Qf6 {[%emt 0:02:13]} 28. Rxd7+ {[%emt 0:00:35]} Kf8 {[%emt 0:00:21]} 29. Rxb7 {[%emt 0:02:46]} Qxf5 {[%emt 0:00:16]} 30. Rg3 {[%emt 0:01:25]} e4 {[%emt 0:04:47]} 31. Qg4 {[%emt 0:00:22]} Qxg4 {[%emt 0:00:18]} 32. Rxg4 {[%emt 0:00:07]} Re8 {[%emt 0:00:51]} 33. Rf4 {[%emt 0:00:19]} Rh7 {[%emt 0:00:08]} 34. Rxa7 {[%emt 0:00:12]} e3 {[%emt 0:00:16]} 35. fxe3 {[%emt 0:00:45]} Rxe3 {[%emt 0:00:04]} 36. Rb7 {[%emt 0:00:36]} Re6 {[%emt 0:00:51]} 37. Kf2 {[%emt 0:00:15]} Rg7 {[%emt 0:00:27]} 38. b4 {[%emt 0:01:32]} cxb4 {[%emt 0:00:13]} 39. cxb4 {[%emt 0:00:08]} Rc6 {[%emt 0:00:08]} 40. g4 {[%emt 0:00:00]} Rc2+ {[%emt 0:00:00]} 41. Kg3 {[%emt 0:02:01]} Rxa2 {[%emt 0:00:42]} 42. Rxb6 {[%emt 0:00:15]} Rh7 {[%emt 0:00:05]} 43. Rf3 {[%emt 0:00:19]} Rb2 {[%emt 0:01:11]} 44. b5 {[%emt 0:01:26]} Rb4 {[%emt 0:00:19]} 45. Rb7 {[%emt 0:00:33]} Kg8 {[%emt 0:00:33]} 46. b6 {[%emt 0:02:02]} Rg7 {[%emt 0:00:34]} 47. Rb8+ {[%emt 0:00:49]} Kh7 {[%emt 0:00:09]} 48. Rf5 {[%emt 0:00:55]} 1-0

[Event "Hungarian Youth-ch U14 2022"]
[Site "Eger"]
[Date "2022.07.28"]
[Round "6.7"]
[White "Toth, Timea"]
[Black "Szarvas, Nora Orsolya"]
[Result "1/2-1/2"]
[ECO "B22"]
[WhiteElo "1964"]
[BlackElo "1692"]
[Annotator "TA"]
[PlyCount "103"]
[EventDate "2022.07.21"]
[EventType "tourn"]
[EventCountry "HUN"]
[SourceTitle "playchess.com"]
[Source "ChessBase"]
[SourceQuality "1"]
[TimeControl "40/5400+30:1800+30"]

{[%evp 16,103,12,14,19,17,25,30,22,23,54,-12,-19,-26,-16,-22,0,0,0,-22,-16,-17,-16,-56,-45,-83,-86,-89,-37,-66,-54,-59,-54,-66,-65,-111,-107,-179,-176,-180,-177,-183,-183,-184,-175,-177,-182,-167,-150,-138,-78,-70,-50,-55,-28,-43,-18,-183,-184,-229,-260,-238,-243,-487,-432,-422,-401,-507,-346,-283,-41,-95,-110,-110,-105,-89,0,-283,-281,-336,-334,-328,-275,-287,-195,-180,0,-227,0,-191]} 1. e4 {[%emt 0:00:32]} c5 {[%emt 0:00:46]} 2. c3 {[%emt 0:00:05]} Nf6 {[%emt 0:00:06]} 3. e5 {[%emt 0:00:22]} Nd5 {[%emt 0:00:04]} 4. d4 {[%emt 0:05:06]} cxd4 {[%emt 0:00:16]} 5. Qxd4 {[%emt 0:14:25]} e6 {[%emt 0:00:42]} 6. Bc4 {[%emt 0:02:13]} Nc6 {[%emt 0:01:45]} 7. Qe4 {[%emt 0:06:36]} Nb6 {[%emt 0:04:02]} 8. Bb3 {[%emt 0:02:07]} d6 {[%emt 0:09:00]} 9. exd6 {[%emt 0:04:33]} Bxd6 {[%emt 0:04:15] B22: Sicilian: 2 c3.} 10. Nf3 {[%emt 0:04:27]} h6 {[%emt 0:12:36]} 11. O-O {[%emt 0:04:59]} Qe7 {[%emt 0:09:26] White has an edge.} 12. Rd1 {[%emt 0:31:35] [#]} Bc7 $146 {[%emt 0:10:15][%cal Ob6d5]} ({Predecessor:} 12... e5 13. Be3 Be6 14. Bxe6 Qxe6 15. Bxb6 axb6 16. b3 O-O 17. Nbd2 Bc7 18. Nc4 Rfd8 {0-1 (35) Zhestovskaya,A-Cherenkova,K (2191) Serpukhov 2003}) 13. Qh4 {[%emt 0:12:16]} (13. Na3 $14) 13... Qxh4 $11 {[%emt 0:02:22]} 14. Nxh4 {[%emt 0:00:02]} Bd7 {[%emt 0:02:11]} 15. Nf3 {[%emt 0:02:43]} Rd8 {[%emt 0:03:23]} 16. Be3 {[%emt 0:00:26]} Na5 {[%emt 0:06:12]} 17. Bc2 {[%emt 0:00:57]} Nac4 {[%emt 0:01:13]} 18. Bxb6 {[%emt 0:01:49]} Nxb6 {[%emt 0:04:11]} 19. b3 {[%emt 0:01:02]} Ke7 {[%emt 0:04:33]} 20. Nbd2 {[%emt 0:00:31]} Nd5 {[%emt 0:01:22]} 21. c4 {[%emt 0:00:13]} Nf6 {[%emt 0:03:19]} ({Better is} 21... Nb4 $17 22. Be4 Nc6) 22. Re1 {[%emt 0:00:23]} Ba5 {[%emt 0:03:08]} 23. Re2 {[%emt 0:00:37]} Bc6 {[%emt 0:00:30]} 24. h3 {[%emt 0:00:27]} Rd7 {[%emt 0:04:01]} 25. a3 {[%emt 0:01:20]} (25. Ne4 $15) 25... Bc3 $17 {[%emt 0:00:41]} 26. Rb1 {[%emt 0:00:31]} (26. Rf1 $17) 26... Rhd8 $19 {[%emt 0:03:31][%cal Rc3d2]} 27. Ne4 {[%emt 0:00:31]} Nxe4 {[%emt 0:00:09]} 28. Bxe4 {[%emt 0:00:07]} Rd1+ {[%emt 0:01:40]} 29. Rxd1 {[%emt 0:00:09]} Rxd1+ {[%emt 0:00:03]} 30. Kh2 {[%emt 0:00:03]} Bxe4 {[%emt 0:00:08]} 31. Rxe4 {[%emt 0:00:06][%mdl 4096] Endgame KRB-KRN} Bb2 {[%emt 0:00:52]} 32. a4 {[%emt 0:00:11]} Rd3 {[%emt 0:00:27]} (32... Rc1 $142 33. Re3 Ba3) 33. Re3 $17 {[%emt 0:00:03]} Rxe3 {[%emt 0:00:25]} 34. fxe3 $15 {[%emt 0:00:02] KB-KN} Bc1 {[%emt 0:00:10]} 35. e4 {[%emt 0:00:05]} Kd6 {[%emt 0:00:37]} 36. b4 {[%emt 0:00:58]} (36. Ne1 $1 $11) 36... Ba3 $1 $19 {[%emt 0:00:23]} 37. e5+ {[%emt 0:00:07]} Kc7 {[%emt 0:00:45]} 38. Nd4 {[%emt 0:01:17] aiming for Nb5+.} Bxb4 {[%emt 0:04:44] And now ...Kb6 would win.} 39. Nb5+ $2 {[%emt 0:00:06]} (39. Kg3) 39... Kb6 {[%emt 0:00:39]} 40. Kg3 {[%emt 0:00:00]} f6 {[%emt 0:00:00]} 41. Kf4 {[%emt 0:00:38]} Bd2+ {[%emt 0:10:41]} 42. Ke4 {[%emt 0:00:18]} a6 $2 {[%emt 0:09:20]} (42... fxe5 $19 {White must now prevent ...Bb4.} 43. Kxe5 Kc5 44. Kxe6 Kxc4 45. Nxa7 Kb4) 43. Nd4 {[%emt 0:07:54]} (43. exf6 $1 $15 gxf6 44. Nd4) 43... fxe5 $17 {[%emt 0:03:50]} 44. Nxe6 {[%emt 0:00:21]} Ka5 {[%emt 0:04:21]} 45. Nc5 {[%emt 0:15:55]} Kb6 {[%emt 0:00:20]} ({Black should play} 45... Kb4 $1 $17 {[%cal Rb4c5]} 46. Kd5 Bg5) 46. Nd7+ {[%emt 0:01:49][%mdl 8192]} (46. Ne6 $11 {and White has nothing to worry.}) 46... Kc6 $1 $19 {[%emt 0:02:12]} 47. Nxe5+ {[%emt 0:00:29] [#]} Kc5 $1 {[%emt 0:00:40]} 48. Kd3 {[%emt 0:01:26] [#]} Bg5 {[%emt 0:01:41]} 49. Nd7+ {[%emt 0:08:08]} Kd6 {[%emt 0:03:57]} 50. Nb6 {[%emt 0:02:06]} Kc5 {[%emt 0:01:10]} (50... Kc6 $142 51. Nd5 Kc5) 51. Nd7+ {[%emt 0:00:17]} Kd6 {[%emt 0:00:23]} 52. Nb6 $1 {[%emt 0:00:07] Weighted Error Value: White=0.40/Black=0.32} 1/2-1/2

[Event "Hungarian Youth-ch U14 2022"]
[Site "Eger"]
[Date "2022.07.28"]
[Round "6.8"]
[White "Kovacs, Reka"]
[Black "Eros, Vivien"]
[Result "1-0"]
[ECO "B19"]
[WhiteElo "1716"]
[BlackElo "1599"]
[Annotator "NA RC COMBH"]
[PlyCount "69"]
[EventDate "2022.07.21"]
[EventType "tourn"]
[EventCountry "HUN"]
[SourceTitle "playchess.com"]
[Source "ChessBase"]
[SourceQuality "1"]
[TimeControl "40/5400+30:1800+30"]

1. e4 {[%emt 0:00:34]} c6 {[%emt 0:00:35]} 2. d4 {[%emt 0:00:06]} d5 {[%emt 0:00:03]} 3. Nc3 {[%emt 0:00:16]} dxe4 {[%emt 0:00:04]} 4. Nxe4 {[%emt 0:00:06]} Bf5 {[%emt 0:00:04]} 5. Ng3 {[%emt 0:00:09]} Bg6 {[%emt 0:00:06]} 6. h4 {[%emt 0:00:14]} h6 {[%emt 0:00:05]} 7. Nf3 {[%emt 0:00:06]} Nd7 {[%emt 0:00:04]} 8. h5 {[%emt 0:00:27]} Bh7 {[%emt 0:00:04]} 9. Bd3 {[%emt 0:00:09]} Bxd3 {[%emt 0:00:06]} 10. Qxd3 {[%emt 0:00:08]} e6 {[%emt 0:00:07]} 11. Bd2 {[%emt 0:00:26]} Qc7 {[%emt 0:00:08]} 12. O-O-O {[%emt 0:01:18]} O-O-O {[%emt 0:00:07]} 13. Ne4 {[%emt 0:02:36]} Ngf6 {[%emt 0:01:06]} 14. g3 {[%emt 0:02:18]} Nxe4 {[%emt 0:16:17]} 15. Qxe4 {[%emt 0:00:08]} Nf6 {[%emt 0:00:09]} 16. Qe2 {[%emt 0:00:33]} Bd6 {[%emt 0:02:21]} 17. Kb1 {[%emt 0:04:39]} Nd7 {[%emt 0:02:10]} 18. c4 {[%emt 0:04:35]} Rhe8 {[%emt 0:13:15]} 19. Bc3 {[%emt 0:09:31]} c5 {[%emt 0:20:55]} 20. dxc5 {[%emt 0:08:15]} Qxc5 {[%emt 0:04:16]} 21. Bxg7 {[%emt 0:03:41]} Qf5+ {[%emt 0:02:02]} 22. Ka1 {[%emt 0:01:07]} Qg4 {[%emt 0:01:41]} 23. Bxh6 {[%emt 0:15:46]} Ne5 {[%emt 0:09:00]} 24. Bf4 {[%emt 0:00:16]} Bc7 {[%emt 0:06:45]} 25. Bxe5 {[%emt 0:01:42]} Bxe5 {[%emt 0:00:09]} 26. Qxe5 {[%emt 0:04:55]} Qxf3 {[%emt 0:00:06]} 27. Qc5+ {[%emt 0:00:34]} Kb8 {[%emt 0:00:20]} 28. Rxd8+ {[%emt 0:04:37]} Rxd8 {[%emt 0:00:06]} 29. Rb1 {[%emt 0:00:39]} Ka8 {[%emt 0:02:29]} 30. Qg5 {[%emt 0:10:03]} Rh8 {[%emt 0:00:18]} 31. h6 {[%emt 0:01:15]} Qe4 {[%emt 0:05:24]} 32. Qg7 {[%emt 0:03:00]} Qh7 {[%emt 0:00:28]} 33. Rd1 {[%emt 0:03:17]} Qxg7 {[%emt 0:06:55]} 34. hxg7 {[%emt 0:00:09]} Rg8 {[%emt 0:00:27]} 35. Rh1 {[%emt 0:00:08]} 1-0